bitfinex/quotes_BTCUSD_20250608
["timestamp","ask_amount","ask_price","bid_price","bid_amount"]
[1749417847571,9.028e-05,106350.0,106340.0,3.97936188]
[1749417847773,9.028e-05,106350.0,106340.0,4.26320188]
[1749417848189,9.028e-05,106350.0,106340.0,3.97936188]
[1749417848402,9.028e-05,106350.0,106340.0,4.26320188]
[1749417849449,9.028e-05,106350.0,106340.0,3.97936188]
[1749417849611,9.028e-05,106350.0,106340.0,4.26320188]
[1749417850219,9.028e-05,106350.0,106340.0,3.97936188]
[1749417850422,9.028e-05,106350.0,106340.0,4.26320188]
[1749417856799,9.028e-05,106350.0,106340.0,3.99586188]
[1749417857003,9.028e-05,106350.0,106340.0,4.27966188]
[1749417866277,9.028e-05,106350.0,106340.0,3.99586188]
[1749417866460,9.028e-05,106350.0,106340.0,4.27966188]
[1749417867660,9.028e-05,106350.0,106340.0,3.99586188]
[1749417867858,9.028e-05,106350.0,106340.0,4.27966188]
[1749417868210,9.028e-05,106350.0,106340.0,3.99586188]
[1749417868416,9.028e-05,106350.0,106340.0,4.27966188]
[1749417870005,9.028e-05,106350.0,106340.0,3.99586188]
[1749417870377,9.028e-05,106350.0,106340.0,4.27966188]
[1749417870584,9.028e-05,106350.0,106340.0,3.99586188]
[1749417870796,9.028e-05,106350.0,106340.0,4.27966188]
[1749417871203,9.028e-05,106350.0,106340.0,3.97936188]
[1749417871446,9.028e-05,106350.0,106340.0,4.26316188]
[1749417875361,9.028e-05,106350.0,106340.0,2.4730506]
[1749417875566,9.028e-05,106350.0,106340.0,4.26316188]
[1749417876143,9.028e-05,106350.0,106340.0,3.97936188]
[1749417876348,9.028e-05,106350.0,106340.0,4.26316188]
[1749417877172,9.028e-05,106350.0,106340.0,3.97936188]
[1749417877436,9.028e-05,106350.0,106340.0,4.26316188]
[1749417878109,9.028e-05,106350.0,106340.0,3.97936188]
[1749417878331,9.028e-05,106350.0,106340.0,4.26316188]
[1749417879008,9.028e-05,106350.0,106340.0,3.97936188]
[1749417879260,9.028e-05,106350.0,106340.0,4.26316188]
[1749417880484,9.028e-05,106350.0,106340.0,3.97936188]
[1749417880684,9.028e-05,106350.0,106340.0,4.26316188]
[1749417881253,9.028e-05,106350.0,106340.0,3.97936188]
[1749417881460,9.028e-05,106350.0,106340.0,4.26316188]
[1749417882139,9.028e-05,106350.0,106340.0,3.97936188]
[1749417882668,9.028e-05,106350.0,106340.0,4.26316188]
[1749417884316,9.028e-05,106350.0,106340.0,3.97936188]
[1749417884690,9.028e-05,106350.0,106340.0,4.26316188]
[1749417885080,9.028e-05,106350.0,106340.0,3.97936188]
[1749417885282,9.028e-05,106350.0,106340.0,4.26316188]
[1749417885923,9.028e-05,106350.0,106340.0,3.97936188]
[1749417886458,9.028e-05,106350.0,106340.0,4.26316188]
[1749417888187,9.028e-05,106350.0,106340.0,3.97936188]
[1749417888444,9.028e-05,106350.0,106340.0,4.26316188]
[1749417895496,9.028e-05,106350.0,106340.0,3.97936188]
[1749417895698,9.028e-05,106350.0,106340.0,4.26316188]
[1749417899552,9.028e-05,106350.0,106340.0,2.1892506]
[1749417899755,9.028e-05,106350.0,106340.0,3.97936188]
[1749417899960,9.028e-05,106350.0,106340.0,4.26316188]
[1749417900640,9.028e-05,106350.0,106340.0,6.05327316]
[1749417900850,9.028e-05,106350.0,106340.0,6.08517316]
[1749417901060,0.01550972,106360.0,106350.0,0.62080681]
[1749417901264,0.03130972,106360.0,106350.0,1.08708629]
[1749417901498,0.03130972,106360.0,106350.0,2.28049381]
[1749417901712,0.03130972,106360.0,106350.0,2.30872981]
[1749417903371,0.2,106390.0,106380.0,0.57074582]
[1749417903579,0.2,106390.0,106380.0,3.31477658]
[1749417903754,0.2,106390.0,106380.0,2.71807282]
[1749417903975,0.2157,106390.0,106380.0,2.71807282]
[1749417904176,0.2319,106390.0,106380.0,2.74630282]
[1749417904397,0.2319,106390.0,106380.0,2.37630282]
[1749417904575,0.2319,106390.0,106380.0,2.74642282]
[1749417904800,0.2419,106390.0,106380.0,2.74642282]
[1749417905003,0.2369,106390.0,106380.0,2.74642282]
[1749417905150,0.2319,106390.0,106380.0,2.74642282]
[1749417905551,0.2359,106390.0,106380.0,2.74654282]
[1749417906372,0.2359,106390.0,106380.0,2.74650282]
[1749417906793,0.2359,106390.0,106380.0,2.7560858]
[1749417907413,0.2359,106390.0,106380.0,2.4719658]
[1749417907670,0.2359,106390.0,106380.0,2.7560858]
[1749417914182,0.2359,106390.0,106380.0,2.7559658]
[1749417917206,0.2359,106390.0,106380.0,2.4719658]
[1749417917623,0.2359,106390.0,106380.0,3.0542258]
[1749417940523,0.2359,106390.0,106380.0,3.0539858]
[1749417943141,0.2359,106390.0,106380.0,2.7702658]
[1749417943480,0.2359,106390.0,106380.0,3.0539858]
[1749417951300,0.2202,106390.0,106380.0,2.7702658]
[1749417951520,0.2202,106390.0,106380.0,3.0539858]
[1749417952914,0.2202,106390.0,106380.0,2.7702658]
[1749417953173,0.2202,106390.0,106380.0,3.0539858]
[1749417953381,0.2202,106390.0,106380.0,2.7702658]
[1749417953718,0.2202,106390.0,106380.0,3.0539858]
[1749417954118,0.2202,106390.0,106380.0,2.7702658]
[1749417954492,0.2202,106390.0,106380.0,3.0539858]
[1749417955549,0.2202,106390.0,106380.0,2.7702658]
[1749417955767,0.2202,106390.0,106380.0,3.0539858]
[1749417956184,0.2365,106390.0,106380.0,3.0539858]
[1749417958334,0.2202,106390.0,106380.0,3.0539858]
[1749417959202,0.2202,106390.0,106380.0,2.7702658]
[1749417959399,0.2202,106390.0,106380.0,3.0539858]
[1749417960853,0.2202,106390.0,106380.0,2.7702658]
[1749417961057,0.2202,106390.0,106380.0,3.0539858]
[1749417962315,0.2202,106390.0,106380.0,2.7702658]
[1749417962534,0.2202,106390.0,106380.0,3.0539858]
[1749417965357,0.2202,106390.0,106380.0,2.7702658]
[1749417966291,0.2202,106390.0,106380.0,3.0539858]
[1749417973142,0.2202,106390.0,106380.0,2.7702658]
[1749417973350,0.2202,106390.0,106380.0,3.0539858]
[1749417974589,0.204,106390.0,106380.0,3.0539858]
[1749417978047,0.204,106390.0,106380.0,2.6841858]
[1749417978254,0.2196,106390.0,106380.0,3.0539458]
[1749417979132,0.2196,106390.0,106380.0,1.86053828]
[1749417979330,0.2196,106390.0,106380.0,3.0539458]
[1749417982111,0.2196,106390.0,106380.0,3.0257158]
[1749417992183,0.2196,106390.0,106380.0,1.83230828]
[1749417992386,0.2196,106390.0,106380.0,3.0257158]
[1749417998021,0.204,106390.0,106380.0,3.0257158]
[1749418001842,0.204,106390.0,106380.0,0.38942789]
[1749418001843,0.42388759,106390.0,106380.0,0.38942789]
[1749418002078,0.46148341,106390.0,106380.0,0.5953654]
[1749418002299,0.28289519,106390.0,106380.0,0.91774854]
[1749418002511,0.28289519,106390.0,106380.0,1.54146854]
[1749418002974,0.4614842,106390.0,106380.0,1.54146854]
[1749418004719,0.26409724,106390.0,106380.0,1.54146854]
[1749418006942,0.26409724,106390.0,106380.0,1.45542854]
[1749418007604,0.26409724,106390.0,106380.0,1.17170854]
[1749418007796,0.27349661,106390.0,106380.0,1.45542854]
[1749418012275,0.27349661,106390.0,106380.0,1.4554281]
[1749418015688,0.26409724,106390.0,106380.0,1.4554281]
[1749418029456,0.26409715,106390.0,106380.0,1.4554281]
[1749418031884,0.26409715,106390.0,106380.0,0.85872434]
[1749418036215,0.27349644,106390.0,106380.0,0.85872434]
[1749418040429,0.28289581,106390.0,106380.0,0.8493247]
[1749418041792,0.27349697,106390.0,106380.0,0.8493247]
[1749418042799,0.46148456,106390.0,106380.0,0.8493247]
[1749418042917,0.46148456,106390.0,106380.0,1.44602846]
[1749418044715,0.44518456,106390.0,106380.0,1.44602846]
[1749418048022,0.46098456,106390.0,106380.0,1.44602846]
[1749418049950,0.44518456,106390.0,106380.0,1.44602846]
[1749418051277,0.25719697,106390.0,106380.0,1.44602846]
[1749418051487,0.44518456,106390.0,106380.0,1.44602846]
[1749418052218,0.44518456,106390.0,106380.0,1.43662873]
[1749418052971,0.46518456,106390.0,106380.0,1.43662873]
[1749418054218,0.46518456,106390.0,106380.0,1.44602846]
[1749418058464,0.26159697,106390.0,106380.0,1.44602846]
[1749418058652,0.26159697,106390.0,106380.0,1.16230846]
[1749418058854,0.44958456,106390.0,106380.0,1.44606846]
[1749418060990,0.44958456,106390.0,106380.0,1.16230846]
[1749418061391,0.44958456,106390.0,106380.0,1.44602846]
[1749418062876,0.44958456,106390.0,106380.0,1.16230846]
[1749418063262,0.44958456,106390.0,106380.0,1.44602846]
[1749418063472,0.44958456,106390.0,106380.0,1.16230846]
[1749418063900,0.44958456,106390.0,106380.0,1.44602846]
[1749418064519,0.44958456,106390.0,106380.0,1.43662873]
[1749418065387,0.44018545,106390.0,106380.0,1.43662873]
[1749418065811,0.43078625,106390.0,106380.0,1.42722891]
[1749418068249,0.44718625,106390.0,106380.0,1.42722891]
[1749418071174,0.43778696,106390.0,106380.0,1.42722927]
[1749418072248,0.42138696,106390.0,106380.0,1.42722927]
[1749418075798,0.42138696,106390.0,106380.0,0.83052551]
[1749418080343,0.42138696,106390.0,106380.0,0.83992541]
[1749418081845,0.42138696,106390.0,106380.0,0.83052551]
[1749418084476,0.42138696,106390.0,106380.0,0.83992541]
[1749418084670,0.42138696,106390.0,106380.0,0.84932523]
[1749418091747,0.24279848,106390.0,106380.0,0.85872496]
[1749418092423,0.24279848,106390.0,106380.0,1.17170872]
[1749418092651,0.24279848,106390.0,106380.0,1.45542872]
[1749418093062,0.24279848,106390.0,106380.0,0.85872496]
[1749418093923,0.25219724,106390.0,106380.0,0.85872496]
[1749418094548,0.25219724,106390.0,106380.0,0.85872434]
[1749418100614,0.4495842,106390.0,106380.0,0.8493247]
[1749418104617,0.4495842,106390.0,106380.0,0.9353647]
[1749418107059,0.4495842,106390.0,106380.0,0.94476434]
[1749418107281,0.4695842,106390.0,106380.0,0.94476434]
[1749418114388,0.4695842,106390.0,106380.0,0.85872434]
[1749418114608,0.4695842,106390.0,106380.0,0.8493247]
[1749418115914,0.4695842,106390.0,106380.0,0.85872434]
[1749418116150,0.28159661,106390.0,106380.0,0.85872434]
[1749418116361,0.26159661,106390.0,106380.0,0.85872434]
[1749418119963,0.4495842,106390.0,106380.0,0.8493247]
[1749418129642,0.26159661,106390.0,106380.0,0.85872434]
[1749418132076,0.26159661,106390.0,106380.0,0.94476434]
[1749418136421,0.25219724,106390.0,106380.0,0.94476434]
[1749418136826,0.25219724,106390.0,106380.0,1.2577481]
[1749418137223,0.25219724,106390.0,106380.0,1.5414281]
[1749418141758,0.25219724,106390.0,106380.0,0.94472434]
[1749418141956,0.25219724,106390.0,106380.0,1.5414281]
[1749418150786,0.25219715,106390.0,106380.0,1.5414281]
[1749418170974,0.23219715,106390.0,106380.0,1.5414281]
[1749418171758,0.24159644,106390.0,106380.0,1.5414281]
[1749418176414,0.24159644,106390.0,106380.0,0.94472434]
[1749418181088,0.24159644,106390.0,106380.0,0.94468434]
[1749418183264,0.24159644,106390.0,106380.0,0.66104434]
[1749418183475,0.24159644,106390.0,106380.0,0.94468434]
[1749418183678,0.24159644,106390.0,106380.0,1.5413881]
[1749418183887,0.24159644,106390.0,106380.0,1.2577481]
[1749418184488,0.24159644,106390.0,106380.0,1.5413881]
[1749418187727,0.24159644,106390.0,106380.0,1.2577481]
[1749418187932,0.24159644,106390.0,106380.0,1.5413881]
[1749418188101,0.24159644,106390.0,106380.0,1.2577481]
[1749418188301,0.24159644,106390.0,106380.0,1.5413881]
[1749418188563,0.24159644,106390.0,106380.0,0.94468434]
[1749418188721,0.25099581,106390.0,106380.0,0.94468434]
[1749418197789,0.25099581,106390.0,106380.0,0.66104434]
[1749418198232,0.25099581,106390.0,106380.0,0.94468434]
[1749418199316,0.25099581,106390.0,106380.0,0.66104434]
[1749418199579,0.25099581,106390.0,106380.0,0.94468434]
[1749418199764,0.25099581,106390.0,106380.0,0.66104434]
[1749418200321,0.25099581,106390.0,106380.0,0.94468434]
[1749418200899,0.25099581,106390.0,106380.0,0.66104434]
[1749418201105,0.25099581,106390.0,106380.0,0.94468434]
[1749418201315,0.25099581,106390.0,106380.0,0.66104434]
[1749418201954,0.25099581,106390.0,106380.0,0.94468434]
[1749418204588,0.25099581,106390.0,106380.0,0.66104434]
[1749418204986,0.25099581,106390.0,106380.0,0.94468434]
[1749418205195,0.25099581,106390.0,106380.0,1.2577481]
[1749418205658,0.25099581,106390.0,106380.0,1.5413881]
[1749418206927,0.25099581,106390.0,106380.0,1.2577481]
[1749418207476,0.24159644,106390.0,106380.0,1.2577481]
[1749418207678,0.24159644,106390.0,106380.0,1.5413881]
[1749418208323,0.24159644,106390.0,106380.0,1.2577481]
[1749418208529,0.24159644,106390.0,106380.0,1.5413881]
[1749418208731,0.24159644,106390.0,106380.0,1.2577481]
[1749418209286,0.24159644,106390.0,106380.0,1.5413881]
[1749418209807,0.24159644,106390.0,106380.0,1.2577481]
[1749418210224,0.24159644,106390.0,106380.0,1.5413481]
[1749418210447,0.24159644,106390.0,106380.0,1.2577481]
[1749418210846,0.24159644,106390.0,106380.0,1.5413481]
[1749418211273,0.24159644,106390.0,106380.0,1.2577481]
[1749418211469,0.24159644,106390.0,106380.0,1.5413481]
[1749418214217,0.24159644,106390.0,106380.0,1.2577481]
[1749418214396,0.24159644,106390.0,106380.0,1.5413481]
[1749418214805,0.24159644,106390.0,106380.0,1.2577481]
[1749418215012,0.24159644,106390.0,106380.0,1.5413481]
[1749418215894,0.24159644,106390.0,106380.0,1.2577481]
[1749418216138,0.24159644,106390.0,106380.0,1.5413481]
[1749418216311,0.24159644,106390.0,106380.0,1.2577481]
[1749418216522,0.24159644,106390.0,106380.0,1.5413481]
[1749418216720,0.24159644,106390.0,106380.0,1.2577481]
[1749418216923,0.24159644,106390.0,106380.0,1.5413481]
[1749418217265,0.24159644,106390.0,106380.0,1.2577481]
[1749418217463,0.24159644,106390.0,106380.0,1.5413481]
[1749418217613,0.24159644,106390.0,106380.0,1.2577481]
[1749418217816,0.24159644,106390.0,106380.0,1.5413481]
[1749418218169,0.24159644,106390.0,106380.0,1.2577481]
[1749418218453,0.26159644,106390.0,106380.0,1.2577481]
[1749418219310,0.26159644,106390.0,106380.0,1.5413481]
[1749418220203,0.26159644,106390.0,106380.0,1.2577481]
[1749418220408,0.26159644,106390.0,106380.0,1.5413481]
[1749418221222,0.26159644,106390.0,106380.0,1.2577481]
[1749418221444,0.26159644,106390.0,106380.0,1.5413481]
[1749418223626,0.26159644,106390.0,106380.0,1.2577481]
[1749418224434,0.26159644,106390.0,106380.0,1.5413481]
[1749418226031,0.26159644,106390.0,106380.0,1.2577481]
[1749418226251,0.26159644,106390.0,106380.0,1.5413481]
[1749418226400,0.26159644,106390.0,106380.0,1.2577481]
[1749418226958,0.26159644,106390.0,106380.0,1.5413481]
[1749418230014,0.26159644,106390.0,106380.0,1.2577481]
[1749418231116,0.26159644,106390.0,106380.0,1.5413481]
[1749418231369,0.26159644,106390.0,106380.0,1.2577481]
[1749418231575,0.26159644,106390.0,106380.0,1.5413481]
[1749418236023,0.26159644,106390.0,106380.0,1.2577481]
[1749418236230,0.26159644,106390.0,106380.0,1.5413481]
[1749418236449,0.26159644,106390.0,106380.0,1.2577481]
[1749418236689,0.26159644,106390.0,106380.0,1.5413481]
[1749418237693,0.26159644,106390.0,106380.0,1.2577481]
[1749418237895,0.26159644,106390.0,106380.0,1.5413481]
[1749418238109,0.26159644,106390.0,106380.0,0.94464434]
[1749418239881,0.26159644,106390.0,106380.0,0.66104434]
[1749418240078,0.26159644,106390.0,106380.0,0.94464434]
[1749418240526,0.26159644,106390.0,106380.0,0.66104434]
[1749418240681,0.26159644,106390.0,106380.0,0.94464434]
[1749418242577,0.26159644,106390.0,106380.0,0.66104434]
[1749418243071,0.26159644,106390.0,106380.0,0.94464434]
[1749418244293,0.26159644,106390.0,106380.0,0.66104434]
[1749418244498,0.26159644,106390.0,106380.0,0.94464434]
[1749418245849,0.26159644,106390.0,106380.0,1.2577481]
[1749418246067,0.26159644,106390.0,106380.0,1.5413481]
[1749418246288,0.26159644,106390.0,106380.0,1.2577481]
[1749418246634,0.26159644,106390.0,106380.0,1.5413481]
[1749418247237,0.26159644,106390.0,106380.0,1.2577481]
[1749418247437,0.26159644,106390.0,106380.0,1.5413481]
[1749418250874,0.26159644,106390.0,106380.0,1.2577481]
[1749418251320,0.26159644,106390.0,106380.0,1.5413481]
[1749418251870,0.26159644,106390.0,106380.0,1.2577481]
[1749418253249,0.26159644,106390.0,106380.0,1.5413481]
[1749418253910,0.26159644,106390.0,106380.0,1.2577481]
[1749418254060,0.26159644,106390.0,106380.0,1.5413481]
[1749418255761,0.26159644,106390.0,106380.0,1.2577481]
[1749418256087,0.26159644,106390.0,106380.0,1.5413481]
[1749418256290,0.26159644,106390.0,106380.0,1.2577481]
[1749418256586,0.26159644,106390.0,106380.0,1.5413481]
[1749418257777,0.26159644,106390.0,106380.0,1.2577481]
[1749418257977,0.26159644,106390.0,106380.0,1.5413481]
[1749418259226,0.26159644,106390.0,106380.0,1.2577481]
[1749418259399,0.26159644,106390.0,106380.0,1.5413481]
[1749418260363,0.26159644,106390.0,106380.0,1.2577481]
[1749418260571,0.26159644,106390.0,106380.0,1.5413481]
[1749418260710,0.26159644,106390.0,106380.0,1.2577481]
[1749418261626,0.26159644,106390.0,106380.0,1.5413481]
[1749418262233,0.26159644,106390.0,106380.0,1.2577481]
[1749418262980,0.26159644,106390.0,106380.0,1.5413081]
[1749418268939,0.26159644,106390.0,106380.0,1.2577481]
[1749418269573,0.36159644,106390.0,106380.0,1.2577481]
[1749418269819,0.36159644,106390.0,106380.0,1.5413081]
[1749418270171,0.36159644,106390.0,106380.0,1.2577481]
[1749418270886,0.37099581,106390.0,106380.0,1.5413081]
[1749418271290,0.37099581,106390.0,106380.0,2.13801186]
[1749418271739,0.37099581,106390.0,106380.0,1.5413081]
[1749418271948,0.39099581,106390.0,106380.0,1.5413081]
[1749418273605,0.39099581,106390.0,106380.0,1.2577481]
[1749418273805,0.39099581,106390.0,106380.0,1.5413081]
[1749418274414,0.38159644,106390.0,106380.0,1.5413081]
[1749418274622,0.38159644,106390.0,106380.0,1.2577481]
[1749418275615,0.38159644,106390.0,106380.0,1.5413081]
[1749418276492,0.38159644,106390.0,106380.0,1.2577481]
[1749418276707,0.39099581,106390.0,106380.0,1.5413081]
[1749418280178,0.39099581,106390.0,106380.0,1.2577481]
[1749418280383,0.39099581,106390.0,106380.0,1.5413081]
[1749418280799,0.39099581,106390.0,106380.0,1.2577481]
[1749418281174,0.37099581,106390.0,106380.0,1.5413081]
[1749418282189,0.37099581,106390.0,106380.0,1.2577481]
[1749418282388,0.37099581,106390.0,106380.0,1.5413081]
[1749418282591,0.37099581,106390.0,106380.0,1.2577481]
[1749418282792,0.37099581,106390.0,106380.0,1.85445186]
[1749418283371,0.37099581,106390.0,106380.0,2.13801186]
[1749418284807,0.37099581,106390.0,106380.0,1.85445186]
[1749418285015,0.37099581,106390.0,106380.0,2.13801186]
[1749418285282,0.37099581,106390.0,106380.0,1.85445186]
[1749418285900,0.37099581,106390.0,106380.0,2.13801186]
[1749418286321,0.37099581,106390.0,106380.0,1.85445186]
[1749418286519,0.37099581,106390.0,106380.0,2.13801186]
[1749418293117,0.37099581,106390.0,106380.0,1.85445186]
[1749418293324,0.37099581,106390.0,106380.0,2.13801186]
[1749418293527,0.5589834,106390.0,106380.0,2.13801186]
[1749418293734,0.5589834,106390.0,106380.0,1.85445186]
[1749418294093,0.5589834,106390.0,106380.0,2.13801186]
[1749418296799,0.5589834,106390.0,106380.0,1.85445186]
[1749418297035,0.5589834,106390.0,106380.0,2.13801186]
[1749418297991,0.5589834,106390.0,106380.0,1.85445186]
[1749418298695,0.5589834,106390.0,106380.0,2.13801186]
[1749418299460,0.5589834,106390.0,106380.0,1.85445186]
[1749418299980,0.5589834,106390.0,106380.0,2.13801186]
[1749418300196,0.5589834,106390.0,106380.0,1.85445186]
[1749418300418,0.5589834,106390.0,106380.0,2.13801186]
[1749418300859,0.5589834,106390.0,106380.0,1.85445186]
[1749418301053,0.5589834,106390.0,106380.0,2.13801186]
[1749418302021,0.5589834,106390.0,106380.0,1.85445186]
[1749418302827,0.5589834,106390.0,106380.0,2.13801186]
[1749418304692,0.54958456,106390.0,106380.0,2.12861222]
[1749418304902,0.54958456,106390.0,106380.0,1.84505222]
[1749418305125,0.54958456,106390.0,106380.0,2.12861222]
[1749418306931,0.54958456,106390.0,106380.0,1.84505222]
[1749418307337,0.54958456,106390.0,106380.0,2.12857222]
[1749418307628,0.54958456,106390.0,106380.0,1.84505222]
[1749418307896,0.54958456,106390.0,106380.0,2.12857222]
[1749418308332,0.54958456,106390.0,106380.0,1.84505222]
[1749418309123,0.54958456,106390.0,106380.0,2.12857222]
[1749418309577,0.54958456,106390.0,106380.0,1.84505222]
[1749418309823,0.54958456,106390.0,106380.0,2.12857222]
[1749418310158,0.54958456,106390.0,106380.0,1.84505222]
[1749418310563,0.54958456,106390.0,106380.0,2.12857222]
[1749418310766,0.54958456,106390.0,106380.0,1.84505222]
[1749418311051,0.54958456,106390.0,106380.0,2.12857222]
[1749418312395,0.54958456,106390.0,106380.0,1.84505222]
[1749418312611,0.54958456,106390.0,106380.0,2.12857222]
[1749418314405,0.54958456,106390.0,106380.0,1.84505222]
[1749418315065,0.54958456,106390.0,106380.0,2.12857222]
[1749418315908,0.54958456,106390.0,106380.0,1.84505222]
[1749418317284,0.54958456,106390.0,106380.0,2.12857222]
[1749418319765,0.54958456,106390.0,106380.0,1.84505222]
[1749418319938,0.54958456,106390.0,106380.0,2.12857222]
[1749418320408,0.54958456,106390.0,106380.0,1.84505222]
[1749418320586,0.54018545,106390.0,106380.0,2.11917249]
[1749418320722,0.54018545,106390.0,106380.0,1.84505222]
[1749418321143,0.54018545,106390.0,106380.0,2.12857222]
[1749418321366,0.54018545,106390.0,106380.0,2.13797186]
[1749418322765,0.54018545,106390.0,106380.0,1.85445186]
[1749418322969,0.54018545,106390.0,106380.0,2.13797186]
[1749418323175,0.54018545,106390.0,106380.0,1.85445186]
[1749418323378,0.54018545,106390.0,106380.0,2.13797186]
[1749418323585,0.35219786,106390.0,106380.0,2.13797186]
[1749418324830,0.35219786,106390.0,106380.0,1.85445186]
[1749418325182,0.35219786,106390.0,106380.0,2.13797186]
[1749418325838,0.35219786,106390.0,106380.0,1.85445186]
[1749418326029,0.35219786,106390.0,106380.0,2.13797186]
[1749418326589,0.35219786,106390.0,106380.0,1.85445186]
[1749418326790,0.35219786,106390.0,106380.0,2.13797186]
[1749418326990,0.35219786,106390.0,106380.0,1.85445186]
[1749418327200,0.35219786,106390.0,106380.0,2.13797186]
[1749418327403,0.34279849,106390.0,106380.0,2.13797186]
[1749418330294,0.34279849,106390.0,106380.0,0.94456434]
[1749418330495,0.34279849,106390.0,106380.0,2.13797186]
[1749418335540,0.32279849,106390.0,106380.0,2.13797186]
[1749418336178,0.32279849,106390.0,106380.0,1.5412681]
[1749418338430,0.32279849,106390.0,106380.0,1.2577481]
[1749418338680,0.32279849,106390.0,106380.0,1.5412681]
[1749418339096,0.32279849,106390.0,106380.0,1.2577481]
[1749418339316,0.32279849,106390.0,106380.0,1.5412681]
[1749418343397,0.32279849,106390.0,106380.0,1.2577481]
[1749418343671,0.32279849,106390.0,106380.0,1.5412681]
[1749418344144,0.32279849,106390.0,106380.0,1.2577481]
[1749418344561,0.32279849,106390.0,106380.0,1.5412681]
[1749418345197,0.32279849,106390.0,106380.0,1.2577481]
[1749418345625,0.32279849,106390.0,106380.0,1.5412681]
[1749418346689,0.32279849,106390.0,106380.0,0.94456434]
[1749418346900,0.32279849,106390.0,106380.0,1.5412681]
[1749418347314,0.32279849,106390.0,106380.0,0.94456434]
[1749418347725,0.32279849,106390.0,106380.0,1.5412681]
[1749418351573,0.33219786,106390.0,106380.0,1.2577481]
[1749418351760,0.33219786,106390.0,106380.0,1.5412681]
[1749418352517,0.32279849,106390.0,106380.0,1.5412681]
[1749418357153,0.33219786,106390.0,106380.0,1.5412681]
[1749418358895,0.33219786,106390.0,106380.0,1.2577481]
[1749418359132,0.33219786,106390.0,106380.0,1.5412281]
[1749418360595,0.52018545,106390.0,106380.0,1.53182846]
[1749418361214,0.52018545,106390.0,106380.0,1.52242873]
[1749418370717,0.52018545,106390.0,106380.0,1.51302918]
[1749418371484,0.52018545,106390.0,106380.0,1.52242926]
[1749418373179,0.52018545,106390.0,106380.0,2.11913302]
[1749418375895,0.53648545,106390.0,106380.0,2.11913302]
[1749418379231,0.53648545,106390.0,106380.0,2.10973312]
[1749418379456,0.52708625,106390.0,106380.0,2.10973312]
[1749418380023,0.52708625,106390.0,106380.0,1.51302936]
[1749418382354,0.52708625,106390.0,106380.0,1.22954936]
[1749418382601,0.52708625,106390.0,106380.0,1.51302936]
[1749418382863,0.52708625,106390.0,106380.0,1.22954936]
[1749418383075,0.52708625,106390.0,106380.0,1.51302936]
[1749418383271,0.52708625,106390.0,106380.0,1.52242935]
[1749418383599,0.52708625,106390.0,106380.0,1.24834925]
[1749418383961,0.52708625,106390.0,106380.0,1.54122907]
[1749418384302,0.52708625,106390.0,106380.0,1.54122854]
[1749418395707,0.52708625,106390.0,106380.0,1.25774854]
[1749418395912,0.51078625,106390.0,106380.0,1.54122854]
[1749418397325,0.51078625,106390.0,106380.0,1.25774854]
[1749418397526,0.51078625,106390.0,106380.0,1.54122854]
[1749418397940,0.51078625,106390.0,106380.0,1.25774854]
[1749418398281,0.51078625,106390.0,106380.0,1.54122854]
[1749418398659,0.32279866,106390.0,106380.0,1.2577481]
[1749418398866,0.32279866,106390.0,106380.0,1.5412281]
[1749418400273,0.32279866,106390.0,106380.0,1.2577481]
[1749418400509,0.32279866,106390.0,106380.0,1.5412281]
[1749418401180,0.32279866,106390.0,106380.0,1.2577481]
[1749418401397,0.32279866,106390.0,106380.0,1.5412281]
[1749418404207,0.32279831,106390.0,106380.0,1.5412281]
[1749418405311,0.33219698,106390.0,106380.0,1.5412281]
[1749418416454,0.33219698,106390.0,106380.0,1.2577481]
[1749418416657,0.33219698,106390.0,106380.0,1.5411881]
[1749418418774,0.33219698,106390.0,106380.0,1.2577481]
[1749418418974,0.33219698,106390.0,106380.0,1.5411881]
[1749418423724,0.33219698,106390.0,106380.0,1.2577481]
[1749418423921,0.33219698,106390.0,106380.0,1.5411881]
[1749418428310,0.33219698,106390.0,106380.0,1.5410281]
[1749418429905,0.32279778,106390.0,106380.0,1.5410281]
[1749418430214,0.33219698,106390.0,106380.0,1.5410281]
[1749418433137,0.32279778,106390.0,106380.0,1.5410281]
[1749418433347,0.33219698,106390.0,106380.0,1.5410281]
[1749418434094,0.33219689,106390.0,106380.0,1.5410281]
[1749418437839,0.33219689,106390.0,106380.0,1.2575881]
[1749418438049,0.33219689,106390.0,106380.0,1.5410281]
[1749418438258,0.33219689,106390.0,106380.0,1.2575881]
[1749418438469,0.33219689,106390.0,106380.0,1.5410281]
[1749418441211,0.33219689,106390.0,106380.0,1.2575881]
[1749418441428,0.33219689,106390.0,106380.0,1.5410281]
[1749418442531,0.33219689,106390.0,106380.0,1.2575881]
[1749418442743,0.33219689,106390.0,106380.0,1.5410281]
[1749418445030,0.34159609,106390.0,106380.0,1.5410281]
[1749418447951,0.34159609,106390.0,106380.0,1.5409881]
[1749418450859,0.32279778,106390.0,106380.0,1.1717081]
[1749418451091,0.32279778,106390.0,106380.0,2.13769186]
[1749418451092,0.33219698,106390.0,106380.0,2.13769186]
[1749418451313,0.32279778,106390.0,106380.0,1.85429186]
[1749418451535,0.32279778,106390.0,106380.0,2.13769186]
[1749418452801,0.33219698,106390.0,106380.0,2.13769186]
[1749418453257,0.33219689,106390.0,106380.0,1.85429186]
[1749418453470,0.33219689,106390.0,106380.0,2.13769186]
[1749418454315,0.33219689,106390.0,106380.0,1.85429186]
[1749418455393,0.33219689,106390.0,106380.0,2.13769186]
[1749418458236,0.33219689,106390.0,106380.0,1.85429186]
[1749418458447,0.33219689,106390.0,106380.0,2.13769186]
[1749418458909,0.33219689,106390.0,106380.0,1.85429186]
[1749418459035,0.33219689,106390.0,106380.0,2.13769186]
[1749418459638,0.33219689,106390.0,106380.0,1.85429186]
[1749418459870,0.33219689,106390.0,106380.0,2.13769186]
[1749418460245,0.33219689,106390.0,106380.0,1.85429186]
[1749418460442,0.33219689,106390.0,106380.0,2.13769186]
[1749418466597,0.32279778,106390.0,106380.0,1.85429186]
[1749418466804,0.32279778,106390.0,106380.0,2.13769186]
[1749418467436,0.33219698,106390.0,106380.0,2.13769186]
[1749418467637,0.33219689,106390.0,106380.0,2.13769186]
[1749418468168,0.33219689,106390.0,106380.0,1.5409881]
[1749418470244,0.33219689,106390.0,106380.0,1.2575881]
[1749418470438,0.33219689,106390.0,106380.0,1.5409881]
[1749418471314,0.34159609,106390.0,106380.0,1.5409881]
[1749418472191,0.34159609,106390.0,106380.0,1.2575881]
[1749418472403,0.34159609,106390.0,106380.0,1.5409881]
[1749418480264,0.00939964,106380.0,106370.0,0.88645928]
[1749418480491,0.01879946,106380.0,106370.0,1.66540252]
[1749418480697,0.01879946,106380.0,106370.0,1.94876252]
[1749418481359,0.00939964,106380.0,106370.0,1.94876252]
[1749418481565,0.01979946,106380.0,106370.0,1.94876252]
[1749418482325,0.01979946,106380.0,106370.0,1.93226252]
[1749418484555,0.02919945,106380.0,106370.0,1.93226252]
[1749418484772,0.01979946,106380.0,106370.0,1.93226252]
[1749418484957,0.02919936,106380.0,106370.0,1.93226252]
[1749418486970,0.01979946,106380.0,106370.0,1.93226252]
[1749418487176,0.02919945,106380.0,106370.0,1.93226252]
[1749418490562,0.02919945,106380.0,106370.0,1.64890252]